[Event "Titled Tuesday Blitz May 16 Early 2023"]
[White "Hossain, Enamul"]
[Black "Bharath Subramaniyam H"]
[WhiteFideId "10200649"]
[BlackFideId "46634827"]
[WhiteElo "2433"]
[BlackElo "2400"]
[Result "1-0"]
[Round "10"]
[TimeControl "180+2"]
[Date "2023.05.16"]
[WhiteClock "0:00:14"]
[BlackClock "0:00:03"]

1. e4 {[%clk 0:03:00]}  c5 {[%clk 0:02:56]} 2. Nf3 {[%clk 0:03:00]}  Nf6 {[%clk 0:02:56]} 3. e5 {[%clk 0:02:57]}  Nd5 {[%clk 0:02:57]} 4. g3 {[%clk 0:02:55]}  Nc6 {[%clk 0:02:56]} 5. Bg2 {[%clk 0:02:54]}  d6 {[%clk 0:02:55]} 6. exd6 {[%clk 0:02:53]}  e6 {[%clk 0:02:38]} 7. O-O {[%clk 0:02:52]}  Bxd6 {[%clk 0:02:38]} 8. Na3 {[%clk 0:02:46]}  O-O {[%clk 0:02:37]} 9. d3 {[%clk 0:02:43]}  Be7 {[%clk 0:02:29]} 10. Re1 {[%clk 0:02:40]}  Bf6 {[%clk 0:02:24]} 11. Nc4 {[%clk 0:02:38]}  Nd4 {[%clk 0:02:20]} 12. c3 {[%clk 0:02:29]}  Nxf3+ {[%clk 0:02:15]} 13. Qxf3 {[%clk 0:02:30]}  Bd7 {[%clk 0:02:12]} 14. Ne5 {[%clk 0:02:23]}  Bxe5 {[%clk 0:02:06]} 15. Rxe5 {[%clk 0:02:22]}  Bc6 {[%clk 0:02:06]} 16. Qe2 {[%clk 0:02:09]}  Rc8 {[%clk 0:02:05]} 17. Bd2 {[%clk 0:02:06]}  b6 {[%clk 0:02:00]} 18. Re1 {[%clk 0:02:05]}  Ne7 {[%clk 0:01:58]} 19. Bg5 {[%clk 0:01:43]}  Bxg2 {[%clk 0:01:46]} 20. Kxg2 {[%clk 0:01:44]}  Qd7 {[%clk 0:01:46]} 21. Bxe7 {[%clk 0:01:40]}  Qxe7 {[%clk 0:01:47]} 22. Qf3 {[%clk 0:01:37]}  Rfd8 {[%clk 0:01:44]} 23. h4 {[%clk 0:01:36]}  Qd7 {[%clk 0:01:43]} 24. R1e3 {[%clk 0:01:33]}  Qa4 {[%clk 0:01:42]} 25. h5 {[%clk 0:01:29]}  h6 {[%clk 0:01:37]} 26. a3 {[%clk 0:01:27]}  Qb5 {[%clk 0:01:29]} 27. b4 {[%clk 0:01:22]}  Qa4 {[%clk 0:01:23]} 28. g4 {[%clk 0:00:57]}  cxb4 {[%clk 0:01:21]} 29. cxb4 {[%clk 0:00:54]}  Qc6 {[%clk 0:01:12]} 30. R3e4 {[%clk 0:00:49]}  Qc3 {[%clk 0:00:57]} 31. Re3 {[%clk 0:00:49]}  Qc6 {[%clk 0:00:25]} 32. R3e4 {[%clk 0:00:49]}  Qd6 {[%clk 0:00:24]} 33. d4 {[%clk 0:00:48]}  Qe7 {[%clk 0:00:18]} 34. d5 {[%clk 0:00:43]}  Qb7 {[%clk 0:00:17]} 35. dxe6 {[%clk 0:00:43]}  fxe6 {[%clk 0:00:17]} 36. Rxe6 {[%clk 0:00:43]}  Rf8 {[%clk 0:00:17]} 37. Rf4 {[%clk 0:00:32]}  Qxf3+ {[%clk 0:00:16]} 38. Rxf3 {[%clk 0:00:32]}  Rxf3 {[%clk 0:00:15]} 39. Kxf3 {[%clk 0:00:33]}  Rc3+ {[%clk 0:00:15]} 40. Re3 {[%clk 0:00:33]}  Rc2 {[%clk 0:00:16]} 41. Kg3 {[%clk 0:00:26]}  Ra2 {[%clk 0:00:16]} 42. f3 {[%clk 0:00:25]}  a5 {[%clk 0:00:17]} 43. bxa5 {[%clk 0:00:24]}  bxa5 {[%clk 0:00:17]} 44. Kf4 {[%clk 0:00:24]}  a4 {[%clk 0:00:18]} 45. Kf5 {[%clk 0:00:24]}  Kf7 {[%clk 0:00:17]} 46. Rc3 {[%clk 0:00:24]}  Rb2 {[%clk 0:00:15]} 47. Rc7+ {[%clk 0:00:23]}  Kg8 {[%clk 0:00:15]} 48. Rc4 {[%clk 0:00:22]}  Rb3 {[%clk 0:00:15]} 49. f4 {[%clk 0:00:19]}  Rb5+ {[%clk 0:00:07]} 50. Ke6 {[%clk 0:00:19]}  Ra5 {[%clk 0:00:04]} 51. f5 {[%clk 0:00:18]}  Ra6+ {[%clk 0:00:03]} 52. Ke5 {[%clk 0:00:18]}  Kf7 {[%clk 0:00:03]} 53. Rc7+ {[%clk 0:00:17]}  Kf8 {[%clk 0:00:04]} 54. Rd7 {[%clk 0:00:16]}  Rb6 {[%clk 0:00:02]} 55. Rd4 {[%clk 0:00:16]}  Ra6 {[%clk 0:00:02]} 56. Kd5 {[%clk 0:00:15]}  Kf7 {[%clk 0:00:02]} 57. Kc5 {[%clk 0:00:14]}  Kf6 {[%clk 0:00:03]} 58. Kb5 {[%clk 0:00:14]}  Ra8 {[%clk 0:00:03]} 59. Rxa4 {[%clk 0:00:14]}  Rb8+ {[%clk 0:00:04]} 60. Kc6 {[%clk 0:00:14]}  Kg5 {[%clk 0:00:05]} 61. Rb4 {[%clk 0:00:14]}  Rc8+ {[%clk 0:00:05]} 62. Kd7 {[%clk 0:00:14]}  Rc3 {[%clk 0:00:05]} 63. a4 {[%clk 0:00:14]}  Rc5 {[%clk 0:00:05]} 64. Kd6 {[%clk 0:00:14]}  Ra5 {[%clk 0:00:05]} 65. Kc6 {[%clk 0:00:14]}  Ra8 {[%clk 0:00:04]} 66. Kb7 {[%clk 0:00:14]}  Re8 {[%clk 0:00:03]} 67. a5 {[%clk 0:00:14]}  Re1 {[%clk 0:00:04]} 68. a6 {[%clk 0:00:14]}  Re7+ {[%clk 0:00:03]} 69. Kb6 {[%clk 0:00:14]} 1-0


[Site "https://www.chess.com"]

[Event "Titled Tuesday Blitz May 16 Early 2023"]
[White "Florescu, Codrut-Constantin"]
[Black "Pap, Gyula"]
[WhiteFideId "1202200"]
[BlackFideId "725323"]
[WhiteElo "2191"]
[BlackElo "2519"]
[Result "0-1"]
[Round "10"]
[TimeControl "180+2"]
[Date "2023.05.16"]
[WhiteClock "0:01:38"]
[BlackClock "0:02:02"]

1. e4 {[%clk 0:03:00]}  e5 {[%clk 0:03:00]} 2. Nf3 {[%clk 0:03:00]}  Nc6 {[%clk 0:03:00]} 3. Bc4 {[%clk 0:03:00]}  Nf6 {[%clk 0:03:00]} 4. d3 {[%clk 0:03:01]}  d5 {[%clk 0:02:59]} 5. exd5 {[%clk 0:03:00]}  Nxd5 {[%clk 0:03:00]} 6. O-O {[%clk 0:02:56]}  Nb6 {[%clk 0:03:00]} 7. Bb5 {[%clk 0:02:56]}  Bd6 {[%clk 0:02:59]} 8. Re1 {[%clk 0:02:53]}  Qe7 {[%clk 0:02:59]} 9. h3 {[%clk 0:02:49]}  Bd7 {[%clk 0:02:41]} 10. d4 {[%clk 0:02:44]}  e4 {[%clk 0:02:39]} 11. d5 {[%clk 0:02:45]}  Nb8 {[%clk 0:02:29]} 12. Nc3 {[%clk 0:02:28]}  f5 {[%clk 0:02:29]} 13. Ng5 {[%clk 0:02:22]}  O-O {[%clk 0:02:23]} 14. Bxd7 {[%clk 0:02:19]}  N8xd7 {[%clk 0:02:23]} 15. Ne6 {[%clk 0:02:19]}  Rfe8 {[%clk 0:02:16]} 16. Bg5 {[%clk 0:02:06]}  Qf7 {[%clk 0:02:16]} 17. f4 {[%clk 0:01:45]}  Nxd5 {[%clk 0:02:03]} 18. Qxd5 {[%clk 0:01:44]}  Qxe6 {[%clk 0:02:03]} 19. Qxb7 {[%clk 0:01:44]}  Rab8 {[%clk 0:02:03]} 20. Qxa7 {[%clk 0:01:38]}  Bc5+ {[%clk 0:02:02]} 0-1


[Site "https://www.chess.com"]

[Event "Titled Tuesday Blitz May 16 Early 2023"]
[White "Drozdowski, Kacper"]
[Black "Arabidze, Meri"]
[WhiteFideId "1136720"]
[BlackFideId "13604040"]
[WhiteElo "2497"]
[BlackElo "2405"]
[Result "1-0"]
[Round "10"]
[TimeControl "180+2"]
[Date "2023.05.16"]
[WhiteClock "0:00:09"]
[BlackClock "0:00:00"]

1. e4 {[%clk 0:03:00]}  c5 {[%clk 0:02:56]} 2. Nf3 {[%clk 0:03:01]}  e6 {[%clk 0:02:56]} 3. d4 {[%clk 0:03:01]}  cxd4 {[%clk 0:02:57]} 4. Nxd4 {[%clk 0:03:02]}  Nc6 {[%clk 0:02:57]} 5. Nc3 {[%clk 0:03:02]}  a6 {[%clk 0:02:58]} 6. Nxc6 {[%clk 0:03:01]}  bxc6 {[%clk 0:02:59]} 7. Bd3 {[%clk 0:03:02]}  d5 {[%clk 0:02:59]} 8. O-O {[%clk 0:03:02]}  Nf6 {[%clk 0:02:59]} 9. Re1 {[%clk 0:03:02]}  Be7 {[%clk 0:03:00]} 10. Qf3 {[%clk 0:03:02]}  Bb7 {[%clk 0:02:44]} 11. Qg3 {[%clk 0:03:01]}  O-O {[%clk 0:02:44]} 12. Bh6 {[%clk 0:02:53]}  Ne8 {[%clk 0:02:44]} 13. Bf4 {[%clk 0:02:46]}  Bh4 {[%clk 0:02:43]} 14. Qh3 {[%clk 0:02:42]}  h6 {[%clk 0:02:35]} 15. Rad1 {[%clk 0:02:34]}  Bg5 {[%clk 0:02:34]} 16. Qg3 {[%clk 0:02:26]}  Bxf4 {[%clk 0:02:29]} 17. Qxf4 {[%clk 0:02:27]}  Qf6 {[%clk 0:02:24]} 18. Qg3 {[%clk 0:02:22]}  Qg5 {[%clk 0:02:21]} 19. Na4 {[%clk 0:02:18]}  Qxg3 {[%clk 0:01:55]} 20. hxg3 {[%clk 0:02:19]}  Nd6 {[%clk 0:01:56]} 21. Nc5 {[%clk 0:02:19]}  Bc8 {[%clk 0:01:56]} 22. c4 {[%clk 0:02:16]}  Nb7 {[%clk 0:01:50]} 23. Na4 {[%clk 0:02:12]}  Na5 {[%clk 0:01:43]} 24. b4 {[%clk 0:02:00]}  dxc4 {[%clk 0:01:33]} 25. bxa5 {[%clk 0:01:42]}  cxd3 {[%clk 0:01:33]} 26. e5 {[%clk 0:01:30]}  Rb8 {[%clk 0:00:56]} 27. Nb6 {[%clk 0:01:27]}  c5 {[%clk 0:00:56]} 28. Rxd3 {[%clk 0:01:26]}  Bb7 {[%clk 0:00:34]} 29. Rc1 {[%clk 0:01:25]}  Rfd8 {[%clk 0:00:27]} 30. Rdc3 {[%clk 0:00:58]}  Rd2 {[%clk 0:00:27]} 31. R3c2 {[%clk 0:00:42]}  Rbd8 {[%clk 0:00:26]} 32. f3 {[%clk 0:00:40]}  h5 {[%clk 0:00:22]} 33. a4 {[%clk 0:00:40]}  Kh7 {[%clk 0:00:20]} 34. Rxd2 {[%clk 0:00:39]}  Rxd2 {[%clk 0:00:20]} 35. Rxc5 {[%clk 0:00:39]}  Kg6 {[%clk 0:00:20]} 36. Rc7 {[%clk 0:00:38]}  Bd5 {[%clk 0:00:20]} 37. Ra7 {[%clk 0:00:37]}  Kf5 {[%clk 0:00:08]} 38. Rxf7+ {[%clk 0:00:34]}  Kxe5 {[%clk 0:00:08]} 39. Rxg7 {[%clk 0:00:34]}  Kd4 {[%clk 0:00:06]} 40. Rg5 {[%clk 0:00:30]}  Rd1+ {[%clk 0:00:03]} 41. Kh2 {[%clk 0:00:29]}  Rd2 {[%clk 0:00:03]} 42. Nxd5 {[%clk 0:00:20]}  exd5 {[%clk 0:00:04]} 43. Rxh5 {[%clk 0:00:18]}  Ke3 {[%clk 0:00:04]} 44. Rh6 {[%clk 0:00:18]}  d4 {[%clk 0:00:04]} 45. Rxa6 {[%clk 0:00:16]}  d3 {[%clk 0:00:04]} 46. g4 {[%clk 0:00:14]}  Ra2 {[%clk 0:00:04]} 47. Re6+ {[%clk 0:00:14]}  Kf2 {[%clk 0:00:03]} 48. Rd6 {[%clk 0:00:13]}  Ke2 {[%clk 0:00:04]} 49. g5 {[%clk 0:00:12]}  Rxa4 {[%clk 0:00:03]} 50. Kg3 {[%clk 0:00:11]}  Rxa5 {[%clk 0:00:03]} 51. f4 {[%clk 0:00:11]}  d2 {[%clk 0:00:04]} 52. Kg4 {[%clk 0:00:11]}  Ra3 {[%clk 0:00:02]} 53. Rxd2+ {[%clk 0:00:11]}  Kxd2 {[%clk 0:00:03]} 54. g6 {[%clk 0:00:11]}  Ke3 {[%clk 0:00:03]} 55. f5 {[%clk 0:00:11]}  Ke4 {[%clk 0:00:02]} 56. g7 {[%clk 0:00:10]}  Ra8 {[%clk 0:00:02]} 57. f6 {[%clk 0:00:10]}  Ke5 {[%clk 0:00:01]} 58. f7 {[%clk 0:00:10]}  Ra4+ {[%clk 0:00:01]} 59. Kh3 {[%clk 0:00:09]}  Ra3+ {[%clk 0:00:00]} 60. Kh2 {[%clk 0:00:09]} 1-0


[Site "https://www.chess.com"]

[Event "Titled Tuesday Blitz May 16 Early 2023"]
[White "Sarana, Alexey"]
[Black "Zherebukh, Yaroslav"]
[WhiteFideId "24133795"]
[BlackFideId "14116804"]
[WhiteElo "2714"]
[BlackElo "2531"]
[Result "1-0"]
[Round "10"]
[TimeControl "180+2"]
[Date "2023.05.16"]
[WhiteClock "0:00:03"]
[BlackClock "0:00:03"]

1. c4 {[%clk 0:03:00]}  Nf6 {[%clk 0:02:59]} 2. d4 {[%clk 0:03:00]}  g6 {[%clk 0:02:56]} 3. Nc3 {[%clk 0:02:58]}  d5 {[%clk 0:02:56]} 4. cxd5 {[%clk 0:02:58]}  Nxd5 {[%clk 0:02:57]} 5. e4 {[%clk 0:02:58]}  Nxc3 {[%clk 0:02:57]} 6. bxc3 {[%clk 0:02:59]}  Bg7 {[%clk 0:02:57]} 7. Be3 {[%clk 0:03:00]}  c5 {[%clk 0:02:58]} 8. Qd2 {[%clk 0:03:00]}  Qa5 {[%clk 0:02:57]} 9. Rc1 {[%clk 0:03:00]}  O-O {[%clk 0:02:57]} 10. d5 {[%clk 0:02:57]}  e6 {[%clk 0:02:54]} 11. c4 {[%clk 0:02:54]}  Qxd2+ {[%clk 0:02:53]} 12. Kxd2 {[%clk 0:02:54]}  b6 {[%clk 0:02:50]} 13. Bd3 {[%clk 0:02:52]}  f5 {[%clk 0:02:49]} 14. f3 {[%clk 0:02:49]}  Nd7 {[%clk 0:02:46]} 15. Ne2 {[%clk 0:02:16]}  fxe4 {[%clk 0:02:40]} 16. fxe4 {[%clk 0:02:13]}  exd5 {[%clk 0:02:36]} 17. exd5 {[%clk 0:01:59]}  Ne5 {[%clk 0:02:33]} 18. Ng3 {[%clk 0:01:54]}  Nxd3 {[%clk 0:01:45]} 19. Kxd3 {[%clk 0:01:55]}  Ba6 {[%clk 0:01:45]} 20. Bg5 {[%clk 0:01:32]}  Rf2 {[%clk 0:01:35]} 21. d6 {[%clk 0:01:27]}  h6 {[%clk 0:01:27]} 22. Be7 {[%clk 0:01:19]}  Bf8 {[%clk 0:01:16]} 23. Ne4 {[%clk 0:01:14]}  Rf7 {[%clk 0:01:09]} 24. Nf6+ {[%clk 0:01:00]}  Kg7 {[%clk 0:01:04]} 25. Nd5 {[%clk 0:01:00]}  Bb7 {[%clk 0:00:55]} 26. Rhe1 {[%clk 0:00:54]}  Bxe7 {[%clk 0:00:27]} 27. Rxe7 {[%clk 0:00:33]}  Rxe7 {[%clk 0:00:26]} 28. dxe7 {[%clk 0:00:33]}  Re8 {[%clk 0:00:24]} 29. Re1 {[%clk 0:00:30]}  Kf7 {[%clk 0:00:25]} 30. Rf1+ {[%clk 0:00:30]}  Kg7 {[%clk 0:00:25]} 31. a4 {[%clk 0:00:19]}  Bc6 {[%clk 0:00:21]} 32. Re1 {[%clk 0:00:14]}  Kf7 {[%clk 0:00:19]} 33. Rf1+ {[%clk 0:00:14]}  Kg7 {[%clk 0:00:19]} 34. h4 {[%clk 0:00:13]}  Bxa4 {[%clk 0:00:12]} 35. Ra1 {[%clk 0:00:13]}  b5 {[%clk 0:00:12]} 36. Ke4 {[%clk 0:00:06]}  a6 {[%clk 0:00:12]} 37. Ke5 {[%clk 0:00:06]}  Bb3 {[%clk 0:00:11]} 38. Kd6 {[%clk 0:00:03]}  Bxc4 {[%clk 0:00:06]} 39. Nc7 {[%clk 0:00:04]}  Kf7 {[%clk 0:00:05]} 40. Nxe8 {[%clk 0:00:03]}  Kxe8 {[%clk 0:00:03]} 41. Rxa6 {[%clk 0:00:03]} 1-0


[Site "https://www.chess.com"]

[Event "Titled Tuesday Blitz May 16 Early 2023"]
[White "Manukyan, Sargis A."]
[Black "Boyer, Mahel"]
[WhiteFideId "13303970"]
[BlackFideId "45102422"]
[WhiteElo "2187"]
[BlackElo "2439"]
[Result "0-1"]
[Round "10"]
[TimeControl "180+2"]
[Date "2023.05.16"]
[WhiteClock "0:00:20"]
[BlackClock "0:00:03"]

1. d4 {[%clk 0:03:00]}  d6 {[%clk 0:02:59]} 2. c4 {[%clk 0:03:01]}  e5 {[%clk 0:02:57]} 3. dxe5 {[%clk 0:03:00]}  dxe5 {[%clk 0:02:58]} 4. Qxd8+ {[%clk 0:03:00]}  Kxd8 {[%clk 0:02:59]} 5. Nc3 {[%clk 0:03:01]}  c6 {[%clk 0:02:59]} 6. Bd2 {[%clk 0:03:01]}  Be6 {[%clk 0:02:59]} 7. e3 {[%clk 0:03:00]}  Nd7 {[%clk 0:02:58]} 8. O-O-O {[%clk 0:03:00]}  Kc7 {[%clk 0:02:56]} 9. f4 {[%clk 0:03:00]}  h6 {[%clk 0:02:38]} 10. Nf3 {[%clk 0:02:59]}  Ngf6 {[%clk 0:02:39]} 11. h3 {[%clk 0:02:55]}  Bd6 {[%clk 0:02:36]} 12. fxe5 {[%clk 0:02:42]}  Bxe5 {[%clk 0:02:34]} 13. Nxe5 {[%clk 0:02:38]}  Nxe5 {[%clk 0:02:35]} 14. b3 {[%clk 0:02:38]}  Rad8 {[%clk 0:02:30]} 15. Kc2 {[%clk 0:02:38]}  Bf5+ {[%clk 0:02:29]} 16. Kc1 {[%clk 0:02:31]}  Ne4 {[%clk 0:02:27]} 17. Nxe4 {[%clk 0:02:20]}  Bxe4 {[%clk 0:02:27]} 18. Bc3 {[%clk 0:02:20]}  Rxd1+ {[%clk 0:02:21]} 19. Kxd1 {[%clk 0:02:21]}  Rd8+ {[%clk 0:02:21]} 20. Ke1 {[%clk 0:02:13]}  f6 {[%clk 0:02:17]} 21. Bxe5+ {[%clk 0:01:48]}  fxe5 {[%clk 0:02:18]} 22. Be2 {[%clk 0:01:48]}  g5 {[%clk 0:01:47]} 23. h4 {[%clk 0:01:38]}  Bxg2 {[%clk 0:01:28]} 24. Rg1 {[%clk 0:01:38]}  Be4 {[%clk 0:01:28]} 25. hxg5 {[%clk 0:01:38]}  Rg8 {[%clk 0:01:28]} 26. Rf1 {[%clk 0:01:25]}  Rxg5 {[%clk 0:01:27]} 27. Rf7+ {[%clk 0:01:26]}  Kb6 {[%clk 0:01:27]} 28. b4 {[%clk 0:01:26]}  a6 {[%clk 0:01:13]} 29. c5+ {[%clk 0:00:56]}  Ka7 {[%clk 0:01:07]} 30. Bc4 {[%clk 0:00:56]}  Rg1+ {[%clk 0:00:57]} 31. Kd2 {[%clk 0:00:51]}  Rg2+ {[%clk 0:00:48]} 32. Ke1 {[%clk 0:00:50]}  Rb2 {[%clk 0:00:28]} 33. a3 {[%clk 0:00:48]}  Rb1+ {[%clk 0:00:26]} 34. Kf2 {[%clk 0:00:45]}  Ra1 {[%clk 0:00:27]} 35. Be6 {[%clk 0:00:43]}  Kb8 {[%clk 0:00:08]} 36. Rf8+ {[%clk 0:00:43]}  Ka7 {[%clk 0:00:08]} 37. Bc8 {[%clk 0:00:43]}  Ra2+ {[%clk 0:00:06]} 38. Kg1 {[%clk 0:00:36]}  Bd5 {[%clk 0:00:05]} 39. Re8 {[%clk 0:00:36]}  Rxa3 {[%clk 0:00:05]} 40. Re7 {[%clk 0:00:36]}  Rxe3 {[%clk 0:00:05]} 41. Bxb7 {[%clk 0:00:32]}  Kb8 {[%clk 0:00:06]} 42. Bxa6 {[%clk 0:00:32]}  Re1+ {[%clk 0:00:05]} 43. Kf2 {[%clk 0:00:33]}  Rb1 {[%clk 0:00:06]} 44. Rb7+ {[%clk 0:00:32]}  Ka8 {[%clk 0:00:06]} 45. Rb6 {[%clk 0:00:33]}  Ka7 {[%clk 0:00:06]} 46. Bb7 {[%clk 0:00:31]}  h5 {[%clk 0:00:02]} 47. Bc8 {[%clk 0:00:31]}  Rb2+ {[%clk 0:00:02]} 48. Ke3 {[%clk 0:00:32]}  h4 {[%clk 0:00:02]} 49. Kd3 {[%clk 0:00:32]}  h3 {[%clk 0:00:01]} 50. Rb7+ {[%clk 0:00:30]}  Ka8 {[%clk 0:00:01]} 51. Kc3 {[%clk 0:00:16]}  h2 {[%clk 0:00:02]} 52. Kxb2 {[%clk 0:00:14]}  h1=Q {[%clk 0:00:02]} 53. Rb6 {[%clk 0:00:15]}  Qg2+ {[%clk 0:00:02]} 54. Kc3 {[%clk 0:00:16]}  Qf3+ {[%clk 0:00:02]} 55. Kd2 {[%clk 0:00:17]}  Qf4+ {[%clk 0:00:02]} 56. Ke2 {[%clk 0:00:17]}  Bc4+ {[%clk 0:00:02]} 57. Ke1 {[%clk 0:00:18]}  Qf1+ {[%clk 0:00:02]} 58. Kd2 {[%clk 0:00:18]}  Qd3+ {[%clk 0:00:03]} 59. Kc1 {[%clk 0:00:19]}  Qc3+ {[%clk 0:00:04]} 60. Kb1 {[%clk 0:00:18]}  Bd3+ {[%clk 0:00:04]} 61. Ka2 {[%clk 0:00:19]}  Bc4+ {[%clk 0:00:05]} 62. Kb1 {[%clk 0:00:20]}  Bd3+ {[%clk 0:00:04]} 63. Ka2 {[%clk 0:00:20]}  Qc2+ {[%clk 0:00:03]} 64. Ka3 {[%clk 0:00:20]}  Qc1+ {[%clk 0:00:03]} 65. Kb3 {[%clk 0:00:20]}  Qb1+ {[%clk 0:00:02]} 66. Kc3 {[%clk 0:00:20]}  Qc2# {[%clk 0:00:03]} 0-1


[Site "https://www.chess.com"]

[Event "Titled Tuesday Blitz May 16 Early 2023"]
[White "Bocharov, Dmitry"]
[Black "Weishaeutel, Moritz"]
[WhiteFideId "4138716"]
[BlackFideId "12967300"]
[WhiteElo "2469"]
[BlackElo "2301"]
[Result "0-1"]
[Round "10"]
[TimeControl "180+2"]
[Date "2023.05.16"]
[WhiteClock "0:00:05"]
[BlackClock "0:00:10"]

1. c4 {[%clk 0:03:00]}  e6 {[%clk 0:02:54]} 2. g3 {[%clk 0:02:56]}  d5 {[%clk 0:02:54]} 3. Bg2 {[%clk 0:02:56]}  Nf6 {[%clk 0:02:54]} 4. Nf3 {[%clk 0:02:57]}  Be7 {[%clk 0:02:54]} 5. b3 {[%clk 0:02:55]}  O-O {[%clk 0:02:53]} 6. Bb2 {[%clk 0:02:55]}  c5 {[%clk 0:02:53]} 7. cxd5 {[%clk 0:02:55]}  exd5 {[%clk 0:02:53]} 8. d4 {[%clk 0:02:54]}  Nc6 {[%clk 0:02:51]} 9. O-O {[%clk 0:02:54]}  Bg4 {[%clk 0:02:47]} 10. dxc5 {[%clk 0:02:52]}  Bxc5 {[%clk 0:02:46]} 11. Nc3 {[%clk 0:02:51]}  a6 {[%clk 0:02:36]} 12. Rc1 {[%clk 0:02:50]}  Ba7 {[%clk 0:02:36]} 13. Na4 {[%clk 0:02:49]}  d4 {[%clk 0:02:32]} 14. Nc5 {[%clk 0:02:43]}  Qe7 {[%clk 0:02:30]} 15. Nxb7 {[%clk 0:02:27]}  Rac8 {[%clk 0:01:49]} 16. Rxc6 {[%clk 0:02:10]}  Rxc6 {[%clk 0:01:46]} 17. Na5 {[%clk 0:02:11]}  Re6 {[%clk 0:01:35]} 18. Bxd4 {[%clk 0:02:10]}  Bxd4 {[%clk 0:01:06]} 19. Nxd4 {[%clk 0:02:00]}  Bxe2 {[%clk 0:01:07]} 20. Nxe2 {[%clk 0:01:56]}  Rxe2 {[%clk 0:01:08]} 21. Nc6 {[%clk 0:01:55]}  Qe8 {[%clk 0:01:01]} 22. a4 {[%clk 0:01:53]}  Re6 {[%clk 0:00:54]} 23. Qc1 {[%clk 0:01:49]}  Ne4 {[%clk 0:00:50]} 24. Nd4 {[%clk 0:01:39]}  Re7 {[%clk 0:00:50]} 25. b4 {[%clk 0:01:37]}  Qxa4 {[%clk 0:00:38]} 26. Nf5 {[%clk 0:01:13]}  Re5 {[%clk 0:00:37]} 27. Bxe4 {[%clk 0:00:53]}  Rxe4 {[%clk 0:00:34]} 28. Qc3 {[%clk 0:00:31]}  f6 {[%clk 0:00:28]} 29. Qc7 {[%clk 0:00:31]}  Rf7 {[%clk 0:00:26]} 30. Qb8+ {[%clk 0:00:31]}  Re8 {[%clk 0:00:24]} 31. Qb6 {[%clk 0:00:28]}  Qd7 {[%clk 0:00:17]} 32. Nd6 {[%clk 0:00:27]}  Re6 {[%clk 0:00:17]} 33. Rd1 {[%clk 0:00:24]}  Rf8 {[%clk 0:00:12]} 34. Qxa6 {[%clk 0:00:21]}  Rd8 {[%clk 0:00:13]} 35. Qc4 {[%clk 0:00:05]}  Kf8 {[%clk 0:00:10]} 0-1


[Site "https://www.chess.com"]

[Event "Titled Tuesday Blitz May 16 Early 2023"]
[White "Priasmoro, Novendra"]
[Black "Fiorito, Joaquin"]
[WhiteFideId "7105029"]
[BlackFideId "180173"]
[WhiteElo "2412"]
[BlackElo "2157"]
[Result "0-1"]
[Round "10"]
[TimeControl "180+2"]
[Date "2023.05.16"]
[WhiteClock "0:00:47"]
[BlackClock "0:01:21"]

1. e4 {[%clk 0:03:00]}  c6 {[%clk 0:02:59]} 2. d4 {[%clk 0:03:01]}  d5 {[%clk 0:03:00]} 3. e5 {[%clk 0:03:01]}  Bf5 {[%clk 0:03:00]} 4. h4 {[%clk 0:02:59]}  h5 {[%clk 0:03:00]} 5. c4 {[%clk 0:02:58]}  e6 {[%clk 0:03:00]} 6. Nc3 {[%clk 0:02:57]}  dxc4 {[%clk 0:02:59]} 7. Bxc4 {[%clk 0:02:55]}  Nd7 {[%clk 0:02:59]} 8. Nge2 {[%clk 0:02:53]}  Be7 {[%clk 0:02:57]} 9. Ng3 {[%clk 0:02:46]}  Bg6 {[%clk 0:02:55]} 10. Nge4 {[%clk 0:02:44]}  Nh6 {[%clk 0:02:50]} 11. Bg5 {[%clk 0:02:44]}  Nf5 {[%clk 0:02:48]} 12. Bxe7 {[%clk 0:01:57]}  Qxe7 {[%clk 0:02:49]} 13. Be2 {[%clk 0:01:44]}  O-O-O {[%clk 0:02:44]} 14. Qa4 {[%clk 0:01:43]}  Kb8 {[%clk 0:02:43]} 15. Rd1 {[%clk 0:01:42]}  Nb6 {[%clk 0:02:43]} 16. Qa5 {[%clk 0:01:33]}  Rxd4 {[%clk 0:02:34]} 17. Rxd4 {[%clk 0:01:32]}  Nxd4 {[%clk 0:02:35]} 18. Nd6 {[%clk 0:01:32]}  f6 {[%clk 0:02:33]} 19. Qc5 {[%clk 0:01:26]}  Nf5 {[%clk 0:02:28]} 20. Nce4 {[%clk 0:01:22]}  Nd7 {[%clk 0:02:22]} 21. Qb4 {[%clk 0:01:19]}  Nxe5 {[%clk 0:02:23]} 22. f4 {[%clk 0:01:19]}  Ng4 {[%clk 0:01:48]} 23. Ba6 {[%clk 0:01:11]}  Nxd6 {[%clk 0:01:35]} 24. Nxd6 {[%clk 0:01:10]}  Rd8 {[%clk 0:01:36]} 25. Qxb7+ {[%clk 0:01:10]}  Qxb7 {[%clk 0:01:36]} 26. Nxb7 {[%clk 0:01:11]}  Rd5 {[%clk 0:01:34]} 27. b4 {[%clk 0:00:59]}  Ne3 {[%clk 0:01:28]} 28. Kf2 {[%clk 0:00:55]}  Nc2 {[%clk 0:01:22]} 29. Na5 {[%clk 0:00:51]}  Nxb4 {[%clk 0:01:20]} 30. Bc4 {[%clk 0:00:50]}  Rxa5 {[%clk 0:01:21]} 31. Rb1 {[%clk 0:00:47]}  Bxb1 {[%clk 0:01:21]} 0-1


[Site "https://www.chess.com"]

[Event "Titled Tuesday Blitz May 16 Early 2023"]
[White "Simonian, Hrair"]
[Black "Devaev, Alexander"]
[WhiteFideId "13302337"]
[BlackFideId "4169395"]
[WhiteElo "2447"]
[BlackElo "2172"]
[Result "1-0"]
[Round "10"]
[TimeControl "180+2"]
[Date "2023.05.16"]
[WhiteClock "0:01:53"]
[BlackClock "0:00:43"]

1. e4 {[%clk 0:03:00]}  c6 {[%clk 0:02:59]} 2. d4 {[%clk 0:03:00]}  d5 {[%clk 0:03:00]} 3. Nc3 {[%clk 0:03:01]}  dxe4 {[%clk 0:03:00]} 4. Nxe4 {[%clk 0:03:02]}  Bf5 {[%clk 0:03:00]} 5. Ng3 {[%clk 0:03:02]}  Bg6 {[%clk 0:03:01]} 6. h4 {[%clk 0:03:02]}  h6 {[%clk 0:03:00]} 7. Nh3 {[%clk 0:03:03]}  e6 {[%clk 0:02:57]} 8. Nf4 {[%clk 0:03:04]}  Bh7 {[%clk 0:02:57]} 9. c3 {[%clk 0:03:04]}  Nf6 {[%clk 0:02:57]} 10. Bc4 {[%clk 0:03:05]}  Bd6 {[%clk 0:02:57]} 11. Nfh5 {[%clk 0:03:05]}  O-O {[%clk 0:02:44]} 12. Bg5 {[%clk 0:03:04]}  Be7 {[%clk 0:02:40]} 13. Qf3 {[%clk 0:03:03]}  Nbd7 {[%clk 0:02:20]} 14. Bf4 {[%clk 0:03:03]}  Nb6 {[%clk 0:02:15]} 15. Bd3 {[%clk 0:03:02]}  Bxd3 {[%clk 0:02:13]} 16. Qxd3 {[%clk 0:03:03]}  Nbd5 {[%clk 0:02:11]} 17. Bd2 {[%clk 0:03:02]}  c5 {[%clk 0:02:05]} 18. O-O-O {[%clk 0:02:56]}  cxd4 {[%clk 0:02:05]} 19. Qxd4 {[%clk 0:02:54]}  Rc8 {[%clk 0:02:03]} 20. Kb1 {[%clk 0:02:36]}  Qa5 {[%clk 0:01:48]} 21. c4 {[%clk 0:02:00]}  Nb4 {[%clk 0:01:47]} 22. a3 {[%clk 0:02:00]}  Nxh5 {[%clk 0:01:44]} 23. axb4 {[%clk 0:01:59]}  Bxb4 {[%clk 0:00:45]} 24. Bxb4 {[%clk 0:02:00]}  Qxb4 {[%clk 0:00:44]} 25. Nxh5 {[%clk 0:01:59]}  f6 {[%clk 0:00:44]} 26. Qd7 {[%clk 0:01:54]}  Qxc4 {[%clk 0:00:43]} 27. Qxg7# {[%clk 0:01:53]} 1-0


[Site "https://www.chess.com"]